[Event "*** Titled Tuesday Blitz"]
[Site "Chess.com"]
[Date "2021.03.30"]
[Round "3"]
[White "yuki_chess123"]
[Black "oogee"]
[Result "1-0"]
[WhiteElo "2247"]
[BlackElo "2366"]
[TimeControl "180+1"]
[EndTime "10:27:16 PDT"]
[Termination "yuki_chess123 won by resignation"]

1. Nf3 {[%clk 0:02:59]} 1... g6 {[%clk 0:02:58.7]} 2. d4 {[%clk 0:02:56.3]} 2...
Nf6 {[%clk 0:02:57.9]} 3. c4 {[%clk 0:02:56.7]} 3... Bg7 {[%clk 0:02:58]} 4. Nc3
{[%clk 0:02:57.2]} 4... O-O {[%clk 0:02:58.1]} 5. e4 {[%clk 0:02:57.7]} 5... d6
{[%clk 0:02:58.6]} 6. Be2 {[%clk 0:02:57.7]} 6... e5 {[%clk 0:02:58.6]} 7. O-O
{[%clk 0:02:58.3]} 7... Nc6 {[%clk 0:02:58.9]} 8. d5 {[%clk 0:02:56.6]} 8... Ne7
{[%clk 0:02:59.1]} 9. Ne1 {[%clk 0:02:56.4]} 9... Nd7 {[%clk 0:02:59.1]} 10. Nd3
{[%clk 0:02:56.6]} 10... f5 {[%clk 0:02:58]} 11. Bd2 {[%clk 0:02:56.9]} 11...
Nf6 {[%clk 0:02:50.4]} 12. f3 {[%clk 0:02:56.3]} 12... f4 {[%clk 0:02:50.2]} 13.
c5 {[%clk 0:02:55.5]} 13... g5 {[%clk 0:02:49.5]} 14. a4 {[%clk 0:02:53.4]}
14... Rf7 {[%clk 0:02:44.8]} 15. Qc2 {[%clk 0:02:50.6]} 15... Bf8 {[%clk
0:02:43.3]} 16. cxd6 {[%clk 0:02:49.3]} 16... cxd6 {[%clk 0:02:42.7]} 17. Nf2
{[%clk 0:02:49.8]} 17... Rg7 {[%clk 0:02:40.6]} 18. Rfc1 {[%clk 0:02:44.8]}
18... g4 {[%clk 0:02:36.7]} 19. fxg4 {[%clk 0:02:37.7]} 19... Nxg4 {[%clk
0:02:35.3]} 20. Bxg4 {[%clk 0:02:34.5]} 20... Bxg4 {[%clk 0:02:35]} 21. Nxg4
{[%clk 0:02:34.6]} 21... Rxg4 {[%clk 0:02:34.9]} 22. Kh1 {[%clk 0:02:32.7]}
22... Ng6 {[%clk 0:02:31.4]} 23. Nb5 {[%clk 0:02:28.6]} 23... Qg5 {[%clk
0:02:18.5]} 24. Be1 {[%clk 0:02:17.1]} 24... f3 {[%clk 0:02:11.9]} 25. g3 {[%clk
0:02:17.1]} 25... Nf4 {[%clk 0:01:50.8]} 26. Qd2 {[%clk 0:01:59.8]} 26... Bh6
{[%clk 0:01:36.6]} 27. Nxd6 {[%clk 0:01:55.2]} 27... Rf8 {[%clk 0:01:27.6]} 28.
Nf5 {[%clk 0:01:53.3]} 28... Qh5 {[%clk 0:01:09.4]} 29. Nxh6+ {[%clk 0:01:40.7]}
29... Qxh6 {[%clk 0:01:08.7]} 30. Ra3 {[%clk 0:01:35.6]} 30... Qh3 {[%clk
0:00:55.7]} 31. Rxf3 {[%clk 0:01:25.5]} 31... Nh5 {[%clk 0:00:42.7]} 32. Rxf8+
{[%clk 0:01:23.8]} 32... Kxf8 {[%clk 0:00:42.8]} 33. Qf2+ {[%clk 0:01:21.1]}
33... Nf4 {[%clk 0:00:32.7]} 34. Bc3 {[%clk 0:01:06]} 34... Ke7 {[%clk
0:00:20.2]} 35. Bxe5 {[%clk 0:01:05.2]} 35... Nd3 {[%clk 0:00:13]} 1-0

[Event "*** Titled Tuesday Blitz"]
[Site "Chess.com"]
[Date "2021.03.30"]
[Round "3"]
[White "Onischuk_V"]
[Black "Tsyhanchuk_Stanislav"]
[Result "1-0"]
[WhiteElo "2882"]
[BlackElo "2478"]
[TimeControl "180+1"]
[EndTime "10:27:18 PDT"]
[Termination "Onischuk_V won on time"]

1. Nf3 {[%clk 0:03:00.9]} 1... c5 {[%clk 0:02:59]} 2. g3 {[%clk 0:03:00.5]} 2...
Nc6 {[%clk 0:02:59.4]} 3. Bg2 {[%clk 0:03:01.1]} 3... g6 {[%clk 0:02:59.9]} 4.
d4 {[%clk 0:03:01.3]} 4... cxd4 {[%clk 0:02:59.6]} 5. Nxd4 {[%clk 0:03:02]} 5...
Bg7 {[%clk 0:03:00.5]} 6. Nb3 {[%clk 0:03:02.6]} 6... Nf6 {[%clk 0:02:59.8]} 7.
Nc3 {[%clk 0:03:03.1]} 7... O-O {[%clk 0:03:00.2]} 8. e4 {[%clk 0:03:02.7]} 8...
d6 {[%clk 0:03:00.4]} 9. h3 {[%clk 0:03:02.9]} 9... Bd7 {[%clk 0:03:00.4]} 10.
O-O {[%clk 0:03:02.3]} 10... a6 {[%clk 0:02:59.8]} 11. a4 {[%clk 0:02:59.4]}
11... Ne5 {[%clk 0:02:59.4]} 12. Re1 {[%clk 0:02:57]} 12... Nc4 {[%clk
0:02:25.9]} 13. Nd4 {[%clk 0:02:49.6]} 13... Rb8 {[%clk 0:02:18.3]} 14. b3
{[%clk 0:02:49.2]} 14... Ne5 {[%clk 0:02:11.9]} 15. Bb2 {[%clk 0:02:49.4]} 15...
Qc8 {[%clk 0:02:06]} 16. Kh2 {[%clk 0:02:47.7]} 16... Nc6 {[%clk 0:02:03]} 17.
Nd5 {[%clk 0:02:44.6]} 17... Nxd5 {[%clk 0:01:43.7]} 18. exd5 {[%clk 0:02:44.3]}
18... Nxd4 {[%clk 0:01:44.2]} 19. Bxd4 {[%clk 0:02:44.9]} 19... Bxd4 {[%clk
0:01:44.9]} 20. Qxd4 {[%clk 0:02:45.5]} 20... Qxc2 {[%clk 0:01:45.1]} 21. Rxe7
{[%clk 0:02:45.4]} 21... Rbd8 {[%clk 0:01:32.9]} 22. b4 {[%clk 0:02:24.6]} 22...
Bxa4 {[%clk 0:01:04.4]} 23. Rae1 {[%clk 0:02:16.3]} 23... Rde8 {[%clk 0:00:59]}
24. Qf6 {[%clk 0:02:13.7]} 24... Rxe7 {[%clk 0:00:55.3]} 25. Rxe7 {[%clk
0:02:13.3]} 25... Qd2 {[%clk 0:00:38.6]} 26. Rxb7 {[%clk 0:02:10.6]} 26... Bb5
{[%clk 0:00:38.9]} 27. h4 {[%clk 0:02:04.7]} 27... Qxb4 {[%clk 0:00:28.9]} 28.
h5 {[%clk 0:02:03.6]} 28... Qg4 {[%clk 0:00:29.4]} 29. Bf3 {[%clk 0:01:57.7]}
29... Qf5 {[%clk 0:00:11.2]} 30. Qxf5 {[%clk 0:01:57.8]} 30... gxf5 {[%clk
0:00:12.1]} 31. h6 {[%clk 0:01:58.5]} 31... f4 {[%clk 0:00:10.8]} 32. gxf4
{[%clk 0:01:57.1]} 32... Ra8 {[%clk 0:00:11.3]} 33. Rb6 {[%clk 0:01:44.5]} 33...
Bd3 {[%clk 0:00:07.3]} 34. Rxd6 {[%clk 0:01:43.6]} 34... a5 {[%clk 0:00:07.9]}
35. Rb6 {[%clk 0:01:40.4]} 35... a4 {[%clk 0:00:07.6]} 36. d6 {[%clk 0:01:40.7]}
36... Rd8 {[%clk 0:00:08.2]} 37. Bd5 {[%clk 0:01:37]} 37... Bf5 {[%clk 0:00:04]}
38. Kg3 {[%clk 0:01:36.5]} 38... Be6 {[%clk 0:00:03.1]} 39. Be4 {[%clk
0:01:29.5]} 1-0

[Event "*** Titled Tuesday Blitz"]
[Site "Chess.com"]
[Date "2021.03.30"]
[Round "3"]
[White "GelmanAlexander"]
[Black "ChessWarrior7197"]
[Result "0-1"]
[WhiteElo "2644"]
[BlackElo "2899"]
[TimeControl "180+1"]
[EndTime "10:27:20 PDT"]
[Termination "ChessWarrior7197 won by resignation"]

1. d4 {[%clk 0:03:00.9]} 1... e6 {[%clk 0:02:59.8]} 2. Nc3 {[%clk 0:02:59.8]}
2... b6 {[%clk 0:02:56.3]} 3. e4 {[%clk 0:02:58.5]} 3... Bb7 {[%clk 0:02:56.8]}
4. Bd3 {[%clk 0:02:58.8]} 4... Bb4 {[%clk 0:02:56.3]} 5. Ne2 {[%clk 0:02:58.1]}
5... Nf6 {[%clk 0:02:56.1]} 6. O-O {[%clk 0:02:57.9]} 6... d5 {[%clk 0:02:52.2]}
7. e5 {[%clk 0:02:56.9]} 7... Nfd7 {[%clk 0:02:47.8]} 8. Nf4 {[%clk 0:02:52]}
8... h5 {[%clk 0:02:22.4]} 9. Nce2 {[%clk 0:02:20.3]} 9... h4 {[%clk 0:02:11.7]}
10. Nh3 {[%clk 0:01:58.2]} 10... Nc6 {[%clk 0:01:29.2]} 11. c3 {[%clk
0:01:55.2]} 11... Bf8 {[%clk 0:01:29]} 12. f4 {[%clk 0:01:25.7]} 12... g6 {[%clk
0:01:27.8]} 13. f5 {[%clk 0:01:17.9]} 13... gxf5 {[%clk 0:01:25.5]} 14. Bxf5
{[%clk 0:01:16.5]} 14... exf5 {[%clk 0:01:21.4]} 15. Rxf5 {[%clk 0:01:16.7]}
15... Qe7 {[%clk 0:01:20.2]} 16. Bg5 {[%clk 0:01:13.4]} 16... Qe6 {[%clk
0:01:19.1]} 17. Qd3 {[%clk 0:01:03.7]} 17... Ne7 {[%clk 0:01:08.4]} 18. Rf2
{[%clk 0:00:56.5]} 18... O-O-O {[%clk 0:01:06.3]} 19. Raf1 {[%clk 0:00:56]}
19... Re8 {[%clk 0:00:55.3]} 20. Rxf7 {[%clk 0:00:52.5]} 20... Nc6 {[%clk
0:00:55.5]} 21. b4 {[%clk 0:00:45]} 21... Ndxe5 {[%clk 0:00:54]} 22. dxe5 {[%clk
0:00:31.9]} 22... Nxe5 {[%clk 0:00:54.9]} 23. Nd4 {[%clk 0:00:22.1]} 23... Qxf7
{[%clk 0:00:50.2]} 24. Rxf7 {[%clk 0:00:09.8]} 24... Nxd3 {[%clk 0:00:50.4]} 0-1

[Event "*** Titled Tuesday Blitz"]
[Site "Chess.com"]
[Date "2021.03.30"]
[Round "3"]
[White "Kotofeyca"]
[Black "esrosenberg"]
[Result "1-0"]
[WhiteElo "2364"]
[BlackElo "2215"]
[TimeControl "180+1"]
[EndTime "10:27:22 PDT"]
[Termination "Kotofeyca won on time"]

1. d4 {[%clk 0:03:00.9]} 1... Nf6 {[%clk 0:02:59.8]} 2. c4 {[%clk 0:03:00.9]}
2... e6 {[%clk 0:03:00]} 3. Nf3 {[%clk 0:03:00.8]} 3... d5 {[%clk 0:03:00]} 4.
Nc3 {[%clk 0:03:00.4]} 4... Bb4 {[%clk 0:03:00.5]} 5. cxd5 {[%clk 0:02:58.8]}
5... exd5 {[%clk 0:03:00.6]} 6. a3 {[%clk 0:02:56.4]} 6... Bxc3+ {[%clk
0:02:58.9]} 7. bxc3 {[%clk 0:02:57.3]} 7... O-O {[%clk 0:02:57.1]} 8. Bg5 {[%clk
0:02:53.1]} 8... h6 {[%clk 0:02:53.1]} 9. Bh4 {[%clk 0:02:52.6]} 9... Qd6 {[%clk
0:02:27.5]} 10. e3 {[%clk 0:02:46.2]} 10... Ne4 {[%clk 0:02:25.3]} 11. c4 {[%clk
0:02:39.6]} 11... dxc4 {[%clk 0:02:08]} 12. Bxc4 {[%clk 0:02:34.9]} 12... Bg4
{[%clk 0:01:34]} 13. O-O {[%clk 0:02:32.9]} 13... Nd7 {[%clk 0:01:14.4]} 14. Bd3
{[%clk 0:02:10.3]} 14... Bxf3 {[%clk 0:00:35.2]} 15. gxf3 {[%clk 0:02:08.3]}
15... Ng5 {[%clk 0:00:28]} 16. Bg3 {[%clk 0:01:58.9]} 16... Qe6 {[%clk 0:00:17]}
17. h4 {[%clk 0:01:49.6]} 17... Nh3+ {[%clk 0:00:12]} 18. Kg2 {[%clk 0:01:49.9]}
18... f5 {[%clk 0:00:04.9]} 19. Rc1 {[%clk 0:01:30.5]} 19... Nb6 {[%clk
0:00:04.1]} 20. f4 {[%clk 0:01:24.1]} 20... g5 {[%clk 0:00:02.9]} 21. Kxh3
{[%clk 0:01:20.7]} 21... g4+ {[%clk 0:00:01.8]} 22. Kh2 {[%clk 0:01:19.3]} 22...
c6 {[%clk 0:00:01.9]} 23. Rc5 {[%clk 0:01:04]} 23... Kg7 {[%clk 0:00:02.1]} 24.
Re5 {[%clk 0:01:03.6]} 24... Qd6 {[%clk 0:00:02.4]} 25. Qb3 {[%clk 0:01:01.1]}
25... Nd5 {[%clk 0:00:02]} 26. Bxf5 {[%clk 0:00:58.2]} 26... h5 {[%clk
0:00:01.8]} 27. Be6 {[%clk 0:00:55.4]} 1-0

[Event "*** Titled Tuesday Blitz"]
[Site "Chess.com"]
[Date "2021.03.30"]
[Round "3"]
[White "Lyschko"]
[Black "Sadykov_Ramil"]
[Result "1/2-1/2"]
[WhiteElo "2253"]
[BlackElo "2602"]
[TimeControl "180+1"]
[EndTime "10:27:25 PDT"]
[Termination "Game drawn by repetition"]

1. c4 {[%clk 0:03:00.9]} 1... e6 {[%clk 0:02:59.1]} 2. e4 {[%clk 0:03:00.2]}
2... c5 {[%clk 0:02:58.1]} 3. Nf3 {[%clk 0:02:54.8]} 3... Nc6 {[%clk 0:02:58.2]}
4. Nc3 {[%clk 0:02:54.2]} 4... e5 {[%clk 0:02:57.7]} 5. Be2 {[%clk 0:02:53.1]}
5... g6 {[%clk 0:02:50.3]} 6. O-O {[%clk 0:02:52.7]} 6... Bg7 {[%clk 0:02:50.5]}
7. d3 {[%clk 0:02:52.7]} 7... d6 {[%clk 0:02:49.8]} 8. Nd5 {[%clk 0:02:50.4]}
8... h6 {[%clk 0:02:47.7]} 9. a3 {[%clk 0:02:48.6]} 9... Nge7 {[%clk 0:02:45.8]}
10. Rb1 {[%clk 0:02:46.4]} 10... O-O {[%clk 0:02:35.2]} 11. b4 {[%clk
0:02:45.8]} 11... b6 {[%clk 0:02:35.3]} 12. b5 {[%clk 0:02:36.7]} 12... Nxd5
{[%clk 0:02:30.6]} 13. cxd5 {[%clk 0:02:25.6]} 13... Nd4 {[%clk 0:02:15]} 14.
Nxd4 {[%clk 0:02:21.3]} 14... cxd4 {[%clk 0:02:15.9]} 15. Bd2 {[%clk 0:02:05.1]}
15... Bd7 {[%clk 0:01:59.6]} 16. a4 {[%clk 0:02:01.2]} 16... f5 {[%clk
0:01:49.1]} 17. Bf3 {[%clk 0:01:54.9]} 17... Rc8 {[%clk 0:01:38]} 18. Qb3 {[%clk
0:01:49.8]} 18... Kh7 {[%clk 0:01:29.4]} 19. Bb4 {[%clk 0:01:47.6]} 19... Qe7
{[%clk 0:01:20.5]} 20. Rbc1 {[%clk 0:01:45.2]} 20... Rxc1 {[%clk 0:01:14.1]} 21.
Rxc1 {[%clk 0:01:44.2]} 21... Rc8 {[%clk 0:01:15]} 22. Rxc8 {[%clk 0:01:38.4]}
22... Bxc8 {[%clk 0:01:15.9]} 23. Qc4 {[%clk 0:01:37.9]} 23... Bb7 {[%clk
0:01:06.9]} 24. h3 {[%clk 0:01:26.5]} 24... Bf8 {[%clk 0:01:04.1]} 25. Kh2
{[%clk 0:01:09.3]} 25... Qd7 {[%clk 0:00:58.2]} 26. g3 {[%clk 0:01:00.7]} 26...
Qc8 {[%clk 0:00:54.6]} 27. Qxc8 {[%clk 0:00:55.6]} 27... Bxc8 {[%clk 0:00:55.5]}
28. Kg2 {[%clk 0:00:47]} 28... Kg7 {[%clk 0:00:53.1]} 29. g4 {[%clk 0:00:42.8]}
29... f4 {[%clk 0:00:49.3]} 30. Bd1 {[%clk 0:00:39.6]} 30... g5 {[%clk
0:00:46.9]} 31. f3 {[%clk 0:00:38.7]} 31... Kf7 {[%clk 0:00:46.8]} 32. Bb3
{[%clk 0:00:38.5]} 32... Ke7 {[%clk 0:00:46.6]} 33. Kf1 {[%clk 0:00:38.4]} 33...
Kd7 {[%clk 0:00:46.4]} 34. Ke2 {[%clk 0:00:38.5]} 34... Kc7 {[%clk 0:00:46.6]}
35. Kd2 {[%clk 0:00:38.6]} 35... Be7 {[%clk 0:00:46.6]} 36. Kc2 {[%clk
0:00:37.6]} 36... Bf8 {[%clk 0:00:46.7]} 37. Kd2 {[%clk 0:00:37.2]} 37... Be7
{[%clk 0:00:46.8]} 38. Kc2 {[%clk 0:00:37.4]} 38... Bf8 {[%clk 0:00:47]} 39. Kd2
{[%clk 0:00:37.6]} 1/2-1/2

[Event "*** Titled Tuesday Blitz"]
[Site "Chess.com"]
[Date "2021.03.30"]
[Round "3"]
[White "Speed-O-Sonic"]
[Black "campomania3"]
[Result "0-1"]
[WhiteElo "2339"]
[BlackElo "2224"]
[TimeControl "180+1"]
[EndTime "10:27:27 PDT"]
[Termination "campomania3 won by resignation"]

1. d4 {[%clk 0:03:00.9]} 1... d5 {[%clk 0:02:59.9]} 2. Bf4 {[%clk 0:03:00.3]}
2... Nf6 {[%clk 0:02:59.1]} 3. e3 {[%clk 0:03:00.3]} 3... c5 {[%clk 0:02:59.3]}
4. dxc5 {[%clk 0:03:01.2]} 4... Qa5+ {[%clk 0:02:58.4]} 5. Nc3 {[%clk
0:03:00.7]} 5... Qxc5 {[%clk 0:02:58.3]} 6. Nb5 {[%clk 0:02:44.9]} 6... Na6
{[%clk 0:02:57.1]} 7. Nf3 {[%clk 0:02:40.2]} 7... e6 {[%clk 0:02:47]} 8. c3
{[%clk 0:02:31.6]} 8... Be7 {[%clk 0:02:41.4]} 9. Be2 {[%clk 0:02:11.2]} 9...
O-O {[%clk 0:02:40.4]} 10. O-O {[%clk 0:02:11.1]} 10... Bd7 {[%clk 0:02:38]} 11.
a4 {[%clk 0:02:11]} 11... Rfc8 {[%clk 0:02:30.1]} 12. Ne5 {[%clk 0:02:04.3]}
12... Be8 {[%clk 0:02:26.3]} 13. b4 {[%clk 0:01:33.8]} 13... Qb6 {[%clk
0:02:25.5]} 14. a5 {[%clk 0:01:34.2]} 14... Qd8 {[%clk 0:02:24.3]} 15. Qb3
{[%clk 0:01:32]} 15... Nc7 {[%clk 0:02:22.4]} 16. Nd4 {[%clk 0:01:27.8]} 16...
a6 {[%clk 0:02:16.9]} 17. Rac1 {[%clk 0:01:26.9]} 17... Ne4 {[%clk 0:02:13.4]}
18. f3 {[%clk 0:01:23.5]} 18... Nd2 {[%clk 0:02:12.1]} 19. Qa2 {[%clk
0:01:20.6]} 19... Nxf1 {[%clk 0:02:11.6]} 20. Bxf1 {[%clk 0:01:21.5]} 20... Nb5
{[%clk 0:02:11.3]} 21. Nxb5 {[%clk 0:01:15.9]} 21... Bxb5 {[%clk 0:02:10.7]} 22.
Bxb5 {[%clk 0:01:16.4]} 22... axb5 {[%clk 0:02:10.4]} 23. Qe2 {[%clk 0:01:17]}
23... Bxb4 {[%clk 0:02:08.1]} 24. Qxb5 {[%clk 0:01:07]} 24... Bd6 {[%clk
0:01:52]} 25. Qxb7 {[%clk 0:00:52.6]} 25... Bxe5 {[%clk 0:01:48.7]} 26. Bxe5
{[%clk 0:00:53.5]} 26... Rxa5 {[%clk 0:01:43.2]} 27. Rb1 {[%clk 0:00:50.7]}
27... Rac5 {[%clk 0:01:36.2]} 28. Bd4 {[%clk 0:00:46.9]} 28... R5c6 {[%clk
0:01:28.8]} 29. f4 {[%clk 0:00:46.1]} 29... Qc7 {[%clk 0:01:21.6]} 30. Qb2
{[%clk 0:00:43.8]} 30... g6 {[%clk 0:01:14.2]} 31. Qf2 {[%clk 0:00:42.5]} 31...
Rxc3 {[%clk 0:01:08.5]} 32. Qh4 {[%clk 0:00:28.8]} 32... Rc1+ {[%clk 0:00:53.8]}
33. Rxc1 {[%clk 0:00:28.4]} 33... Qxc1+ {[%clk 0:00:53.2]} 34. Kf2 {[%clk
0:00:29.3]} 34... Rc2+ {[%clk 0:00:47.6]} 35. Kg3 {[%clk 0:00:20.1]} 35... Qe1+
{[%clk 0:00:46.8]} 0-1

[Event "*** Titled Tuesday Blitz"]
[Site "Chess.com"]
[Date "2021.03.30"]
[Round "3"]
[White "Eltaj_Safarli"]
[Black "KrolPawel92OnTwitch"]
[Result "1-0"]
[WhiteElo "2863"]
[BlackElo "2616"]
[TimeControl "180+1"]
[EndTime "10:27:28 PDT"]
[Termination "Eltaj_Safarli won on time"]

1. e4 {[%clk 0:03:00.9]} 1... c5 {[%clk 0:02:58.4]} 2. Nc3 {[%clk 0:03:00.8]}
2... Nc6 {[%clk 0:02:57.9]} 3. Bb5 {[%clk 0:03:00.3]} 3... Nf6 {[%clk
0:02:56.3]} 4. Bxc6 {[%clk 0:02:59.2]} 4... dxc6 {[%clk 0:02:57.2]} 5. d3 {[%clk
0:02:59.9]} 5... g6 {[%clk 0:02:57.7]} 6. f4 {[%clk 0:03:00.3]} 6... Bg7 {[%clk
0:02:57.9]} 7. Nf3 {[%clk 0:03:00.6]} 7... O-O {[%clk 0:02:58.2]} 8. O-O {[%clk
0:03:01]} 8... Bg4 {[%clk 0:02:54.1]} 9. h3 {[%clk 0:03:01.2]} 9... Bxf3 {[%clk
0:02:53.9]} 10. Qxf3 {[%clk 0:03:02.1]} 10... e6 {[%clk 0:02:54.1]} 11. Be3
{[%clk 0:02:57.5]} 11... b6 {[%clk 0:02:51.1]} 12. Rad1 {[%clk 0:02:56.7]} 12...
Qc7 {[%clk 0:02:51.1]} 13. e5 {[%clk 0:02:51.4]} 13... Nd5 {[%clk 0:02:47.9]}
14. Ne4 {[%clk 0:02:51.5]} 14... Rad8 {[%clk 0:02:47.1]} 15. Bf2 {[%clk
0:02:47.1]} 15... Qb7 {[%clk 0:02:39.4]} 16. Bh4 {[%clk 0:02:42.7]} 16... Rd7
{[%clk 0:02:27.7]} 17. c4 {[%clk 0:02:35.3]} 17... Ne7 {[%clk 0:02:27.4]} 18.
Nf6+ {[%clk 0:02:30.7]} 18... Bxf6 {[%clk 0:01:50.1]} 19. Bxf6 {[%clk
0:02:31.6]} 19... h6 {[%clk 0:01:50.1]} 20. Qf2 {[%clk 0:02:15.8]} 20... Kh7
{[%clk 0:01:48.1]} 21. d4 {[%clk 0:02:15]} 21... cxd4 {[%clk 0:01:41.8]} 22.
Rxd4 {[%clk 0:02:15.9]} 22... c5 {[%clk 0:01:41.5]} 23. Rd2 {[%clk 0:01:57.6]}
23... Rfd8 {[%clk 0:00:41.7]} 24. Rfd1 {[%clk 0:01:56.5]} 24... Rxd2 {[%clk
0:00:41.4]} 25. Rxd2 {[%clk 0:01:57.4]} 25... Rxd2 {[%clk 0:00:41.5]} 26. Qxd2
{[%clk 0:01:58.3]} 26... Nc6 {[%clk 0:00:41.8]} 27. Qd6 {[%clk 0:01:54.8]} 27...
Qc8 {[%clk 0:00:41.9]} 28. a3 {[%clk 0:01:42.9]} 28... a5 {[%clk 0:00:40.3]} 29.
Kh2 {[%clk 0:01:37.5]} 29... Kg8 {[%clk 0:00:40]} 30. g4 {[%clk 0:01:36.7]}
30... a4 {[%clk 0:00:36.9]} 31. Qd1 {[%clk 0:01:28.5]} 31... Qa8 {[%clk
0:00:26.7]} 32. Qf3 {[%clk 0:01:27.6]} 32... Qb7 {[%clk 0:00:22.5]} 33. f5
{[%clk 0:01:23.1]} 33... exf5 {[%clk 0:00:20.5]} 34. gxf5 {[%clk 0:01:24]} 34...
Qd7 {[%clk 0:00:20.5]} 35. Qd5 {[%clk 0:01:19]} 35... Qxd5 {[%clk 0:00:05.5]}
36. cxd5 {[%clk 0:01:19.9]} 36... Nd4 {[%clk 0:00:02.9]} 37. d6 {[%clk
0:01:16.5]} 1-0

[Event "*** Titled Tuesday Blitz"]
[Site "Chess.com"]
[Date "2021.03.30"]
[Round "3"]
[White "ApoIogiA"]
[Black "AradNazari"]
[Result "0-1"]
[WhiteElo "2187"]
[BlackElo "2498"]
[TimeControl "180+1"]
[EndTime "10:27:28 PDT"]
[Termination "AradNazari won by resignation"]

1. d4 {[%clk 0:03:00.9]} 1... Nf6 {[%clk 0:02:26]} 2. c4 {[%clk 0:02:58.8]} 2...
g6 {[%clk 0:02:21.6]} 3. f3 {[%clk 0:02:58.8]} 3... d5 {[%clk 0:02:20]} 4. cxd5
{[%clk 0:02:57.5]} 4... Nxd5 {[%clk 0:02:20.9]} 5. e4 {[%clk 0:02:56.6]} 5...
Nb6 {[%clk 0:02:20.8]} 6. Nc3 {[%clk 0:02:57.1]} 6... Bg7 {[%clk 0:02:20.7]} 7.
Be3 {[%clk 0:02:56.8]} 7... O-O {[%clk 0:02:16.7]} 8. Qd2 {[%clk 0:02:57.1]}
8... e5 {[%clk 0:02:16.2]} 9. d5 {[%clk 0:02:56]} 9... c6 {[%clk 0:02:16.9]} 10.
O-O-O {[%clk 0:02:53.6]} 10... cxd5 {[%clk 0:02:16.7]} 11. exd5 {[%clk
0:02:02.8]} 11... N8d7 {[%clk 0:02:11.4]} 12. Bh6 {[%clk 0:02:02.1]} 12... Nf6
{[%clk 0:02:08.4]} 13. Bxg7 {[%clk 0:02:00.8]} 13... Kxg7 {[%clk 0:02:09.3]} 14.
h4 {[%clk 0:02:00.8]} 14... h5 {[%clk 0:02:05.9]} 15. Nh3 {[%clk 0:01:44]} 15...
Bxh3 {[%clk 0:02:04.7]} 16. Rxh3 {[%clk 0:01:40.7]} 16... Rc8 {[%clk 0:02:00.6]}
17. Kb1 {[%clk 0:01:40.7]} 17... Rxc3 {[%clk 0:01:57.2]} 18. Qxc3 {[%clk
0:01:23.6]} 18... Nbxd5 {[%clk 0:01:57.3]} 19. Qxe5 {[%clk 0:00:50.2]} 19...
Nc3+ {[%clk 0:01:56.9]} 20. Qxc3 {[%clk 0:00:50.1]} 20... Qxd1+ {[%clk
0:01:56.7]} 21. Qc1 {[%clk 0:00:51]} 21... Rd8 {[%clk 0:01:55.3]} 22. Rh1 {[%clk
0:00:46.2]} 22... Qd4 {[%clk 0:01:49.3]} 23. Be2 {[%clk 0:00:33.1]} 23... Qf2
{[%clk 0:01:47.9]} 24. Bc4 {[%clk 0:00:29.6]} 24... Qxg2 {[%clk 0:01:40.3]} 25.
Re1 {[%clk 0:00:21.4]} 25... Qxf3 {[%clk 0:01:36.4]} 26. Qc2 {[%clk 0:00:15.6]}
26... Rd4 {[%clk 0:01:31.7]} 27. b3 {[%clk 0:00:13.3]} 27... Rxh4 {[%clk
0:01:25.9]} 28. Re7 {[%clk 0:00:13.2]} 28... Nd5 {[%clk 0:01:14.7]} 29. Rd7
{[%clk 0:00:08]} 29... Rd4 {[%clk 0:01:06.2]} 30. Qb2 {[%clk 0:00:05.9]} 30...
Qd1+ {[%clk 0:01:05.6]} 31. Qc1 {[%clk 0:00:05.5]} 31... Nc3+ {[%clk 0:01:06.1]}
32. Kb2 {[%clk 0:00:05.4]} 32... Qxc1+ {[%clk 0:01:07]} 33. Kxc1 {[%clk
0:00:05.7]} 33... Rxd7 {[%clk 0:01:07.9]} 34. Kc2 {[%clk 0:00:06.2]} 34... Ne4
{[%clk 0:01:04.4]} 0-1

[Event "*** Titled Tuesday Blitz"]
[Site "Chess.com"]
[Date "2021.03.30"]
[Round "3"]
[White "jraosam"]
[Black "Irina_Baraeva"]
[Result "0-1"]
[WhiteElo "1838"]
[BlackElo "2281"]
[TimeControl "180+1"]
[EndTime "10:27:28 PDT"]
[Termination "Irina_Baraeva won by resignation"]

1. c4 {[%clk 0:03:00.9]} 1... e5 {[%clk 0:02:59.6]} 2. Nc3 {[%clk 0:02:59.4]}
2... Nf6 {[%clk 0:02:57.8]} 3. Nf3 {[%clk 0:02:57.9]} 3... Nc6 {[%clk
0:02:57.3]} 4. e3 {[%clk 0:02:57.7]} 4... d5 {[%clk 0:02:55.2]} 5. cxd5 {[%clk
0:02:57.5]} 5... Nxd5 {[%clk 0:02:55]} 6. Bb5 {[%clk 0:02:57.5]} 6... f6 {[%clk
0:02:41.9]} 7. d4 {[%clk 0:02:56.9]} 7... Bb4 {[%clk 0:02:35.2]} 8. Bd2 {[%clk
0:02:52.4]} 8... Bxc3 {[%clk 0:02:22]} 9. bxc3 {[%clk 0:02:53.3]} 9... e4 {[%clk
0:02:21.7]} 10. Nh4 {[%clk 0:02:32.6]} 10... O-O {[%clk 0:02:18.4]} 11. O-O
{[%clk 0:02:27.3]} 11... g5 {[%clk 0:02:07.1]} 12. Qh5 {[%clk 0:02:10.4]} 12...
gxh4 {[%clk 0:02:02.4]} 13. Qxh4 {[%clk 0:02:11.3]} 13... Bf5 {[%clk 0:01:53.8]}
14. f3 {[%clk 0:02:01.4]} 14... Qe7 {[%clk 0:01:28.6]} 15. c4 {[%clk 0:01:46]}
15... Nb6 {[%clk 0:01:24.2]} 16. c5 {[%clk 0:01:21.2]} 16... Nd5 {[%clk
0:01:22.4]} 17. Bc4 {[%clk 0:01:18.4]} 17... Rad8 {[%clk 0:01:21.7]} 18. fxe4
{[%clk 0:00:47.3]} 18... Qxe4 {[%clk 0:01:18.8]} 19. Rf4 {[%clk 0:00:46.1]}
19... Qc2 {[%clk 0:01:05.7]} 20. Rxf5 {[%clk 0:00:40.8]} 20... Qxc4 {[%clk
0:00:38.2]} 21. Rh5 {[%clk 0:00:27.2]} 21... Qd3 {[%clk 0:00:36.7]} 22. e4
{[%clk 0:00:20.3]} 22... Qxd4+ {[%clk 0:00:36.3]} 0-1